fUST/lending_fUST_20250623
["ID","MTS","AMOUNT","RATE_DAILY","PERIOD"]
[367047039,1750636241194,-460.0,0.00024048,2]
[367047042,1750636241204,-460.0,0.00024048,2]
[367047044,1750636241213,-460.0,0.00024048,2]
[367047046,1750636241222,-460.0,0.00024048,2]
[367047048,1750636241232,-460.0,0.00024048,2]
[367047050,1750636241241,-460.0,0.00024048,2]
[367047052,1750636241250,-293.9483154,0.00024048,2]
[367047054,1750636241259,-460.0,0.00024048,2]
[367047056,1750636241268,-460.0,0.00024048,2]
[367047058,1750636241278,-460.0,0.00024048,2]
[367047060,1750636241287,-460.0,0.00024048,2]
[367047062,1750636241296,-547.9,0.00024048,2]
[367047064,1750636241306,-344.73148972,0.00024048,2]
[367047066,1750636241315,-588.05506252,0.00024048,2]
[367047068,1750636241325,-460.0,0.00024048,2]
[367047070,1750636241335,-460.0,0.00024048,2]
[367047072,1750636241343,-713.73,0.00024048,2]
[367047074,1750636241352,-460.0,0.00024048,2]
[367047076,1750636241362,-460.0,0.00024048,2]
[367047078,1750636241371,-460.0,0.00024048,2]
[367047080,1750636241380,-460.0,0.00024048,2]
[367047082,1750636241389,-460.0,0.00024048,2]
[367047084,1750636241398,-460.0,0.00024048,2]
[367047086,1750636241408,-460.0,0.00024048,2]
[367047088,1750636241417,-460.0,0.00024048,2]
[367047090,1750636241426,-580.34,0.00024048,2]
[367047091,1750636241435,-759.0,0.00024048,2]
[367047093,1750636241444,-347.3427623,0.00024048,2]
[367047095,1750636241454,-460.0,0.00024048,2]
[367047098,1750636241463,-460.0,0.00024048,2]
[367047100,1750636241472,-460.0,0.00024048,2]
[367047101,1750636241481,-460.0,0.00024048,2]
[367047104,1750636241491,-1142.46,0.00024048,2]
[367047106,1750636241500,-460.0,0.00024048,2]
[367047107,1750636241509,-460.0,0.00024048,2]
[367047110,1750636241518,-1368.17,0.00024048,2]
[367047112,1750636241527,-500.0,0.00024055,2]
[367047114,1750636241537,-500.0,0.00024055,2]
[367047116,1750636241546,-462.0,0.00024061,7]
[367047118,1750636241556,-12551.52821599,0.00024078,2]
[367047120,1750636241566,-160.0,0.00024078,2]
[367047122,1750636241576,-160.0,0.00024078,2]
[367047123,1750636241585,-1326.22469841,0.00024107,10]
[367047125,1750636241595,-460.0,0.00024109,2]
[367047128,1750636241605,-460.0,0.00024109,2]
[367047129,1750636241614,-160.0,0.00024115,2]
[367047132,1750636241624,-846.39664074,0.00024115,2]
[367047134,1750636241634,-160.0,0.00024115,2]
[367047136,1750636241643,-1180.84,0.00024137,2]
[367047138,1750636241651,-460.0,0.00024137,2]
[367047140,1750636241661,-460.0,0.00024137,2]
[367047142,1750636241671,-460.0,0.00024137,2]
[367047144,1750636241680,-460.0,0.00024137,2]
[367047146,1750636241689,-593.21,0.00024137,2]
[367047148,1750636241698,-4797.68,0.00024137,2]
[367047150,1750636241707,-7347.76,0.00024137,2]
[367047152,1750636241717,-460.0,0.00024137,2]
[367047154,1750636241727,-2508.66,0.00024137,2]
[367047156,1750636241736,-1618.48,0.00024137,2]
[367047158,1750636241745,-516.76,0.00024137,2]
[367047160,1750636241755,-460.0,0.00024137,2]
[367047162,1750636241764,-460.0,0.00024137,2]
[367047164,1750636241773,-996.65,0.00024137,2]
[367047166,1750636241782,-5256.2,0.00024137,2]
[367047168,1750636241791,-6638.88,0.00024137,2]
[367047169,1750636241800,-9227.59,0.00024137,2]
[367047171,1750636241810,-2016.08,0.00024137,2]
[367047173,1750636241820,-460.0,0.00024137,2]
[367047175,1750636241829,-3711.46,0.00024137,2]
[367047177,1750636241839,-460.0,0.00024137,2]
[367047179,1750636241848,-6447.27,0.00024137,2]
[367047181,1750636241857,-1076.55,0.00024137,2]
[367047183,1750636241866,-160.0,0.00024176,2]
[367047185,1750636241878,-460.0,0.00024178,2]
[367047187,1750636241887,-460.0,0.00024178,2]
[367047189,1750636241897,-822.18,0.00024178,2]
[367047191,1750636241906,-639.38,0.00024178,2]
[367047193,1750636241917,-428.45006287,0.00024178,2]
[367047195,1750636241926,-460.0,0.00024178,2]
[367047197,1750636241936,-460.0,0.00024178,2]
[367047199,1750636241946,-3857.28,0.00024178,2]
[367047201,1750636241958,-1049.45,0.00024178,2]
[367047203,1750636241967,-495.98,0.00024178,2]
[367047205,1750636241977,-1911.41,0.00024178,2]
[367047207,1750636241987,-2831.33,0.00024178,2]
[367047209,1750636241997,-1610.7,0.00024178,2]
[367047211,1750636242007,-460.0,0.00024178,2]
[367047213,1750636242016,-434.15190711,0.00024178,2]
[367047215,1750636242026,-500.0,0.00024178,2]
[367047217,1750636242035,-10608.46,0.00024178,2]
[367047219,1750636242045,-434.06903922,0.00024178,2]
[367047221,1750636242054,-460.0,0.00024178,2]
[367047223,1750636242063,-509.8,0.00024178,2]
[367047225,1750636242073,-437.46620615,0.00024178,2]
[367047227,1750636242082,-960.88,0.00024178,2]
[367047229,1750636242091,-460.0,0.00024178,2]
[367047231,1750636242100,-460.0,0.00024178,2]
[367047233,1750636242110,-2786.99,0.00024178,2]
[367047235,1750636242119,-460.0,0.00024178,2]
[367047237,1750636242128,-579.62,0.00024178,2]
[367047239,1750636242138,-460.0,0.00024178,2]
[367047241,1750636242147,-460.0,0.00024178,2]
[367047243,1750636242157,-469.80495774,0.00024178,2]
[367047245,1750636242166,-460.0,0.00024178,2]
[367047247,1750636242176,-500.0,0.00024178,2]
[367047249,1750636242185,-485.32,0.00024178,2]
[367047251,1750636242194,-460.0,0.00024178,2]
[367047253,1750636242205,-460.0,0.00024178,2]
[367047255,1750636242215,-460.0,0.00024178,2]
[367047257,1750636242224,-1629.68,0.00024178,2]
[367047259,1750636242233,-460.0,0.00024178,2]
[367047261,1750636242243,-522.83,0.00024178,2]
[367047263,1750636242252,-460.0,0.00024178,2]
[367047265,1750636242261,-460.0,0.00024178,2]
[367047267,1750636242271,-460.0,0.00024178,2]
[367047269,1750636242280,-460.0,0.00024178,2]
[367047271,1750636242290,-460.0,0.00024178,2]
[367047273,1750636242299,-597.73,0.00024178,2]
[367047275,1750636242308,-945.01,0.00024178,2]
[367047277,1750636242319,-460.0,0.00024178,2]
[367047279,1750636242328,-436.42168427,0.00024178,2]
[367047281,1750636242338,-447.00879276,0.00024178,2]
[367047283,1750636242347,-673.12,0.00024178,2]
[367047285,1750636242357,-4221.89,0.00024178,2]
[367047287,1750636242366,-460.0,0.00024178,2]
[367047289,1750636242376,-460.0,0.00024178,2]
[367047291,1750636242385,-460.0,0.00024178,2]
[367047293,1750636242395,-2757.09,0.00024178,2]
[367047295,1750636242404,-460.0,0.00024178,2]
[367047297,1750636242414,-460.0,0.00024178,2]
[367047299,1750636242423,-500.0,0.00024178,2]
[367047301,1750636242433,-576.89,0.00024178,2]
[367047303,1750636242443,-460.0,0.00024178,2]
[367047306,1750636242452,-2422.1,0.00024178,2]
[367047309,1750636242462,-460.0,0.00024178,2]
[367047311,1750636242472,-460.0,0.00024178,2]
[367047313,1750636242482,-635.5,0.00024178,2]
[367047315,1750636242492,-609.53,0.00024178,2]
[367047317,1750636242502,-460.0,0.00024178,2]
[367047319,1750636242512,-460.0,0.00024178,2]
[367047321,1750636242521,-151.0,0.00024178,7]
[367047324,1750636242531,-151.0,0.00024178,7]
[367047327,1750636242541,-432.55960243,0.00024178,2]
[367047331,1750636242551,-151.0,0.00024178,7]
[367047334,1750636242560,-460.0,0.00024178,2]
[367047335,1750636242570,-460.0,0.00024178,2]
[367047338,1750636242579,-713.62,0.00024178,2]
[367047340,1750636242589,-876.44,0.00024178,2]
[367047342,1750636242598,-151.0,0.00024178,7]
[367047343,1750636242608,-1236.08,0.00024178,2]
[367047346,1750636242617,-762.42,0.00024178,2]
[367047347,1750636242627,-1241.59,0.00024178,2]
[367047351,1750636242637,-1518.15,0.00024178,2]
[367047354,1750636242646,-782.94868287,0.00024179,2]
[367047357,1750636242655,-1326.22469841,0.0002421,10]
[367047361,1750636242665,-500.0,0.00024234,2]
[367047363,1750636242674,-662.51,0.00024263,2]
[367047367,1750636242684,-460.0,0.00024263,2]
[367047370,1750636242693,-460.0,0.00024263,2]
[367047372,1750636242703,-460.0,0.00024263,2]
[367047375,1750636242713,-460.0,0.00024263,2]
[367047377,1750636242723,-460.0,0.00024263,2]
[367047379,1750636242732,-460.0,0.00024263,2]
[367047381,1750636242742,-460.0,0.00024263,2]
[367047383,1750636242752,-154.80005118,0.00024263,2]
[367047385,1750636242762,-592.01,0.00024263,2]
[367047387,1750636242772,-460.0,0.00024263,2]
[367047389,1750636242782,-460.0,0.00024263,2]
[367047391,1750636242792,-460.0,0.00024263,2]
[367047393,1750636242801,-629.77,0.00024266,2]
[367047395,1750636242811,-460.0,0.00024266,2]
[367047397,1750636242821,-1046.85,0.00024266,2]
[367047399,1750636242830,-582.51,0.00024266,2]
[367047401,1750636242840,-460.0,0.00024266,2]
[367047403,1750636242849,-460.0,0.00024266,2]
[367047405,1750636242859,-216.000034,0.00024275,2]
[367047407,1750636242869,-500.0,0.00024275,2]
[367047409,1750636242884,-500.0,0.00024275,2]
[367047411,1750636242893,-6082.9,0.00024284,2]
[367047413,1750636242903,-5537.66,0.00024284,2]
[367047415,1750636242913,-490.22,0.00024284,2]
[367047417,1750636242923,-460.0,0.00024284,2]
[367047419,1750636242933,-8191.26,0.00024284,2]
[367047421,1750636242943,-4231.51,0.00024284,2]
[367047424,1750636242953,-585.43,0.00024284,2]
[367047426,1750636242962,-347.70406953,0.00024284,2]
[367047427,1750636242972,-7961.46,0.00024284,2]
[367047429,1750636242981,-1201.39,0.00024284,2]
[367047453,1750636243198,-460.0,0.00024284,2]
[367047455,1750636243210,-444.01639997,0.00024284,2]
[367047457,1750636243220,-460.0,0.00024284,2]
[367047459,1750636243230,-358.15099477,0.00024284,2]
[367047462,1750636243240,-460.0,0.00024284,2]
[367047464,1750636243250,-460.0,0.00024284,2]
[367047466,1750636243260,-460.0,0.00024284,2]
[367047468,1750636243269,-460.0,0.00024284,2]
[367047470,1750636243279,-505.30780488,0.00024284,2]
[367047472,1750636243288,-2066.15,0.00024284,2]
[367047474,1750636243298,-1427.61,0.00024284,2]
[367047476,1750636243307,-460.0,0.00024284,2]
[367047478,1750636243317,-670.65,0.00024295,2]
[367047480,1750636243326,-653.05,0.00024295,2]
[367047482,1750636243336,-460.0,0.00024295,2]
[367047485,1750636243345,-773.09,0.00024295,2]
[367047487,1750636243355,-3148.43,0.00024295,2]
[367047490,1750636243364,-1664.29,0.00024295,2]
[367047493,1750636243374,-460.0,0.00024295,2]
[367047496,1750636243383,-470.03,0.00024295,2]
[367047499,1750636243393,-1584.07,0.000243,7]
[367047502,1750636243403,-213.59462818,0.000243,7]
[367047505,1750636243412,-460.0,0.0002431,2]
[367047508,1750636243421,-460.0,0.0002431,2]
[367047511,1750636243431,-460.0,0.0002431,2]
[367047514,1750636243440,-460.0,0.0002431,2]
[367047516,1750636243450,-460.0,0.0002431,2]
[367047518,1750636243459,-460.0,0.0002431,2]
[367047521,1750636243469,-460.0,0.0002431,2]
[367047525,1750636243478,-460.0,0.0002431,2]
[367047527,1750636243487,-460.0,0.0002431,2]
[367047529,1750636243497,-460.0,0.0002431,2]
[367047530,1750636243507,-460.0,0.0002431,2]
[367047533,1750636243516,-830.46,0.0002431,2]
[367047534,1750636243526,-854.56,0.0002431,2]
[367047537,1750636243536,-460.0,0.0002431,2]
[367047539,1750636243545,-460.0,0.0002431,2]
[367047540,1750636243555,-460.0,0.0002431,2]
[367047543,1750636243565,-460.0,0.0002431,2]
[367047545,1750636243574,-460.0,0.0002431,2]
[367047547,1750636243584,-460.0,0.0002431,2]
[367047549,1750636243593,-483.95705021,0.0002431,2]
[367047551,1750636243603,-460.0,0.0002431,2]
[367047553,1750636243613,-460.0,0.0002431,2]
[367047555,1750636243622,-460.0,0.0002431,2]
[367047557,1750636243632,-460.0,0.0002431,2]
[367047559,1750636243641,-239.7,0.0002431,2]
[367047560,1750636243650,-460.0,0.0002431,2]
[367047563,1750636243660,-319.84777633,0.0002431,2]
[367047564,1750636243669,-183.20674947,0.0002431,2]
[367047566,1750636243679,-460.0,0.0002431,2]
[367047568,1750636243688,-460.0,0.0002431,2]
[367047570,1750636243697,-456.77037317,0.0002431,2]
[367047573,1750636243707,-460.0,0.0002431,2]
[367047575,1750636243717,-460.0,0.0002431,2]
[367047577,1750636243726,-1326.22469841,0.00024314,10]
[367047578,1750636243736,-151.0,0.00024314,10]
[367047580,1750636243745,-151.0,0.00024314,10]
[367047583,1750636243755,-151.0,0.00024314,10]
[367047585,1750636243765,-500.0,0.00024314,10]
[367047587,1750636243775,-460.0,0.00024322,2]
[367047589,1750636243784,-460.0,0.00024322,2]
[367047591,1750636243793,-460.0,0.00024322,2]
[367047593,1750636243803,-460.0,0.00024322,2]
[367047595,1750636243812,-2032.93,0.00024322,2]
[367047597,1750636243821,-519.66,0.00024322,2]
[367047599,1750636243831,-652.73,0.00024322,2]
[367047601,1750636243840,-460.0,0.00024322,2]
[367047603,1750636243851,-460.0,0.00024322,2]
[367047605,1750636243860,-572.63,0.00024322,2]
[367047607,1750636243870,-754.77,0.00024322,2]
[367047608,1750636243882,-460.0,0.00024322,2]
[367047611,1750636243892,-460.0,0.00024322,2]
[367047612,1750636243902,-427.68469553,0.00024322,2]
[367047614,1750636243911,-460.0,0.00024322,2]
[367047617,1750636243922,-460.0,0.00024322,2]
[367047618,1750636243931,-460.0,0.00024322,2]
[367047621,1750636243941,-460.0,0.00024322,2]
[367047623,1750636243952,-460.0,0.00024322,2]
[367047625,1750636243961,-460.0,0.00024322,2]
[367047627,1750636243971,-444.40166375,0.00024322,2]
[367047629,1750636243980,-460.0,0.00024322,2]
[367047631,1750636243989,-460.0,0.00024322,2]
[367047633,1750636243999,-460.0,0.00024322,2]
[367047635,1750636244008,-460.0,0.00024322,2]
[367047637,1750636244017,-492.80593633,0.00024322,2]
[367047639,1750636244027,-460.0,0.00024322,2]
[367047641,1750636244038,-460.0,0.00024322,2]
[367047643,1750636244047,-460.0,0.00024322,2]
[367047645,1750636244057,-2266.62,0.00024322,2]
[367047647,1750636244066,-460.0,0.00024322,2]
[367047649,1750636244075,-2994.08,0.00024322,2]
[367047651,1750636244085,-460.0,0.00024322,2]
[367047653,1750636244094,-169.52540722,0.00024322,2]
[367047655,1750636244104,-150.13574563,0.00024322,2]
[367047657,1750636244113,-460.0,0.00024322,2]
[367047659,1750636244123,-433.97418917,0.00024322,2]
[367047661,1750636244132,-460.0,0.00024322,2]
[367047663,1750636244141,-460.0,0.00024322,2]
[367047665,1750636244151,-460.0,0.00024322,2]
[367047667,1750636244161,-460.0,0.00024322,2]
[367047669,1750636244175,-460.0,0.00024322,2]
[367047671,1750636244186,-460.0,0.00024322,2]
[367047673,1750636244196,-547.9,0.00024322,2]
[367047675,1750636244206,-460.0,0.00024322,2]
[367047677,1750636244217,-460.0,0.00024322,2]
[367047678,1750636244226,-713.73,0.00024322,2]
[367047679,1750636244236,-460.0,0.00024322,2]
[367047680,1750636244246,-460.0,0.00024322,2]
[367047681,1750636244255,-460.0,0.00024322,2]
[367047682,1750636244265,-460.0,0.00024322,2]
[367047683,1750636244275,-460.0,0.00024322,2]
[367047684,1750636244284,-460.0,0.00024322,2]
[367047685,1750636244294,-319.7562196,0.00024322,2]
[367047686,1750636244304,-580.34,0.00024322,2]
[367047687,1750636244313,-759.0,0.00024322,2]
[367047688,1750636244324,-460.0,0.00024322,2]
[367047689,1750636244333,-460.0,0.00024322,2]
[367047690,1750636244343,-460.0,0.00024322,2]
[367047691,1750636244353,-151.0,0.00024322,7]
[367047692,1750636244362,-151.0,0.00024322,7]
[367047693,1750636244372,-460.0,0.00024322,2]
[367047694,1750636244381,-156.063728,0.00024322,7]
[367047695,1750636244391,-151.0,0.00024322,7]
[367047696,1750636244401,-1142.46,0.00024322,2]
[367047697,1750636244410,-460.0,0.00024322,2]
[367047698,1750636244420,-460.0,0.00024322,2]
[367047699,1750636244429,-1368.17,0.00024322,2]
[367047700,1750636244439,-4278.98858465,0.00024331,2]
[367047701,1750636244448,-1360.06,0.00024331,2]
[367047702,1750636244457,-1781.3,0.00024331,2]
[367047703,1750636244468,-460.0,0.00024331,2]
[367047705,1750636244478,-466.26,0.00024331,2]
[367047707,1750636244487,-460.0,0.00024331,2]
[367047709,1750636244498,-2294.47,0.00024331,2]
[367047711,1750636244508,-1183.35,0.00024331,2]
[367047713,1750636244517,-460.0,0.00024331,2]
[367047716,1750636244527,-460.0,0.00024331,2]
[367047718,1750636244537,-1548.96,0.00024331,2]
[367047720,1750636244547,-460.0,0.00024331,2]
[367047722,1750636244557,-464.0,0.00024331,2]
[367047724,1750636244568,-460.0,0.00024331,2]
[367047726,1750636244577,-1005.62,0.00024331,2]
[367047728,1750636244587,-493.28,0.00024331,2]
[367047730,1750636244596,-1320.19,0.00024331,2]
[367047732,1750636244607,-460.0,0.00024331,2]
[367047734,1750636244617,-4641.53,0.00024331,2]
[367047736,1750636244627,-460.0,0.00024331,2]
[367047738,1750636244637,-460.0,0.00024331,2]
[367047740,1750636244647,-460.0,0.00024331,2]
[367047742,1750636244658,-1420.67,0.00024331,2]
[367047744,1750636244668,-471.74,0.00024331,2]
[367047746,1750636244678,-586.93401981,0.00024331,2]
[367047749,1750636244687,-460.0,0.00024331,2]
[367047751,1750636244698,-870.51,0.00024331,2]
[367047753,1750636244710,-500.0,0.00024341,10]
[367047755,1750636244720,-500.0,0.00024369,10]
[367047757,1750636244730,-500.0,0.00024396,10]
[367047759,1750636244739,-6133.88188042,0.00024411,2]
[367047761,1750636244749,-1180.84,0.00024411,2]
[367047762,1750636244759,-460.0,0.00024411,2]
[367047765,1750636244768,-381.9588752,0.00024411,2]
[367047766,1750636244777,-460.0,0.00024411,2]
[367047768,1750636244787,-460.0,0.00024411,2]
[367047770,1750636244796,-593.21,0.00024411,2]
[367047772,1750636244807,-4797.68,0.00024411,2]
[367047774,1750636244817,-7347.76,0.00024411,2]
[367047777,1750636244828,-2508.66,0.00024411,2]
[367047779,1750636244838,-1618.48,0.00024411,2]
[367047781,1750636244850,-516.76,0.00024411,2]
[367047783,1750636244860,-460.0,0.00024411,2]
[367047785,1750636244869,-460.0,0.00024411,2]
[367047787,1750636244883,-996.65,0.00024411,2]
[367047789,1750636244892,-5256.2,0.00024411,2]
[367047791,1750636244905,-6638.88,0.00024411,2]
[367047793,1750636244915,-9227.59,0.00024411,2]
[367047795,1750636244926,-2016.08,0.00024411,2]
[367047797,1750636244936,-460.0,0.00024411,2]
[367047799,1750636244947,-3711.46,0.00024411,2]
[367047801,1750636244958,-460.0,0.00024411,2]
[367047803,1750636244968,-6447.27,0.00024411,2]
[367047805,1750636244979,-1076.55,0.00024411,2]
[367047807,1750636244989,-1326.22469841,0.00024417,11]
[367047809,1750636244999,-500.0,0.00024424,10]
[367047811,1750636245009,-500.0,0.00024451,10]
[367047813,1750636245018,-460.0,0.00024452,2]
[367047815,1750636245028,-460.0,0.00024452,2]
[367047817,1750636245038,-822.18,0.00024452,2]
[367047819,1750636245048,-639.38,0.00024452,2]
[367047821,1750636245059,-460.0,0.00024452,2]
[367047823,1750636245070,-460.0,0.00024452,2]
[367047825,1750636245082,-3857.28,0.00024452,2]
[367047827,1750636245092,-1049.45,0.00024452,2]
[367047830,1750636245102,-495.98,0.00024452,2]
[367047832,1750636245113,-1911.41,0.00024452,2]
[367047834,1750636245123,-2831.33,0.00024452,2]
[367047836,1750636245133,-1610.7,0.00024452,2]
[367047838,1750636245143,-460.0,0.00024452,2]
[367047840,1750636245154,-10608.46,0.00024452,2]
[367047842,1750636245164,-460.0,0.00024452,2]
[367047844,1750636245174,-509.8,0.00024452,2]
[367047846,1750636245183,-960.88,0.00024452,2]
[367047848,1750636245193,-460.0,0.00024452,2]
[367047850,1750636245203,-460.0,0.00024452,2]
[367047852,1750636245213,-2786.99,0.00024452,2]
[367047854,1750636245223,-460.0,0.00024452,2]
[367047856,1750636245232,-579.62,0.00024452,2]
[367047858,1750636245242,-460.0,0.00024452,2]
[367047860,1750636245251,-460.0,0.00024452,2]
[367047862,1750636245261,-438.56497545,0.00024452,2]
[367047864,1750636245271,-485.32,0.00024452,2]
[367047866,1750636245280,-460.0,0.00024452,2]
[367047868,1750636245290,-460.0,0.00024452,2]
[367047870,1750636245299,-460.0,0.00024452,2]
[367047872,1750636245308,-1629.68,0.00024452,2]
[367047874,1750636245318,-460.0,0.00024452,2]
[367047876,1750636245328,-522.83,0.00024452,2]
[367047878,1750636245337,-460.0,0.00024452,2]
[367047880,1750636245347,-460.0,0.00024452,2]
[367047882,1750636245357,-460.0,0.00024452,2]
[367047884,1750636245367,-460.0,0.00024452,2]
[367047886,1750636245377,-460.0,0.00024452,2]
[367047888,1750636245387,-597.73,0.00024452,2]
[367047890,1750636245396,-945.01,0.00024452,2]
[367047892,1750636245406,-250.0,0.00024452,2]
[367047894,1750636245416,-673.12,0.00024452,2]
[367047896,1750636245426,-4221.89,0.00024452,2]
[367047898,1750636245436,-460.0,0.00024452,2]
[367047900,1750636245446,-460.0,0.00024452,2]
[367047902,1750636245456,-460.0,0.00024452,2]
[367047904,1750636245466,-2757.09,0.00024452,2]
[367047906,1750636245476,-460.0,0.00024452,2]
[367047908,1750636245486,-460.0,0.00024452,2]
[367047910,1750636245495,-576.89,0.00024452,2]
[367047912,1750636245505,-460.0,0.00024452,2]
[367047915,1750636245516,-460.0,0.00024452,2]
[367047918,1750636245526,-386.17906455,0.00024452,2]
[367047920,1750636245535,-2422.1,0.00024452,2]
[367047922,1750636245545,-635.5,0.00024452,2]
[367047924,1750636245555,-609.53,0.00024452,2]
[367047926,1750636245564,-460.0,0.00024452,2]
[367047928,1750636245575,-460.0,0.00024452,2]
[367047930,1750636245586,-151.0,0.00024452,7]
[367047932,1750636245595,-151.0,0.00024452,7]
[367047934,1750636245605,-460.0,0.00024452,2]
[367047944,1750636245690,-460.0,0.00024452,2]
[367047946,1750636245699,-713.62,0.00024452,2]
[367047948,1750636245710,-876.44,0.00024452,2]
[367047950,1750636245719,-1236.08,0.00024452,2]
[367047951,1750636245729,-762.42,0.00024452,2]
[367047953,1750636245739,-207.597383,0.00024452,7]
[367047955,1750636245749,-1241.59,0.00024452,2]
[367047957,1750636245759,-1518.15,0.00024452,2]
[367047959,1750636245768,-500.0,0.00024478,10]
[367047961,1750636245778,-393.0473929,0.00024506,10]
[367047964,1750636245789,-425.01221603,0.0002451,2]
[367047966,1750636245799,-160.0,0.0002451,2]
[367047968,1750636245808,-160.0,0.0002451,2]
[367047970,1750636245817,-836.56272071,0.0002451,2]
[367047971,1750636245827,-230.14598372,0.0002451,2]
[367047974,1750636245837,-190.0,0.00024517,2]
[367047975,1750636245846,-1326.22469841,0.00024521,11]
[367047978,1750636245856,-662.51,0.00024537,2]
[367047979,1750636245866,-460.0,0.00024537,2]
[367047981,1750636245876,-460.0,0.00024537,2]
[367047983,1750636245886,-427.83927903,0.00024537,2]
[367047985,1750636245895,-460.0,0.00024537,2]
[367047987,1750636245905,-460.0,0.00024537,2]
[367047989,1750636245915,-460.0,0.00024537,2]
[367047991,1750636245924,-326.29014956,0.00024537,2]
[367047993,1750636245933,-592.01,0.00024537,2]
[367047995,1750636245943,-460.0,0.00024537,2]
[367047997,1750636245954,-460.0,0.00024537,2]
[367047999,1750636245964,-460.0,0.00024537,2]
[367048001,1750636245974,-629.77,0.0002454,2]
[367048003,1750636245984,-460.0,0.0002454,2]
[367048005,1750636245993,-1046.85,0.0002454,2]
[367048007,1750636246003,-582.51,0.0002454,2]
[367048009,1750636246012,-460.0,0.0002454,2]
[367048011,1750636246021,-460.0,0.0002454,2]
[367048013,1750636246030,-1000.0,0.00024548,2]
[367048015,1750636246041,-6082.9,0.00024558,2]
[367048017,1750636246050,-5537.66,0.00024558,2]
[367048019,1750636246060,-490.22,0.00024558,2]
[367048021,1750636246070,-520.04379335,0.00024558,2]
[367048023,1750636246079,-8191.26,0.00024558,2]
[367048025,1750636246088,-4231.51,0.00024558,2]
[367048027,1750636246098,-585.43,0.00024558,2]
[367048029,1750636246108,-7961.46,0.00024558,2]
[367048031,1750636246117,-1201.39,0.00024558,2]
[367048033,1750636246127,-460.0,0.00024558,2]
[367048035,1750636246137,-187.65336621,0.00024558,2]
[367048037,1750636246146,-460.0,0.00024558,2]
[367048039,1750636246155,-460.0,0.00024558,2]
[367048041,1750636246165,-460.0,0.00024558,2]
[367048043,1750636246174,-151.0,0.00024558,7]
[367048045,1750636246183,-195.293511,0.00024558,7]
[367048047,1750636246193,-460.0,0.00024558,2]
[367048049,1750636246203,-2066.15,0.00024558,2]
[367048051,1750636246212,-1427.61,0.00024558,2]
[367048053,1750636246222,-460.0,0.00024558,2]
[367048055,1750636246232,-670.65,0.00024569,2]
[367048057,1750636246242,-653.05,0.00024569,2]
[367048059,1750636246251,-460.0,0.00024569,2]
[367048061,1750636246261,-773.09,0.00024569,2]
[367048063,1750636246271,-3148.43,0.00024569,2]
[367048065,1750636246280,-1664.29,0.00024569,2]
[367048067,1750636246290,-460.0,0.00024569,2]
[367048069,1750636246299,-470.03,0.00024569,2]
[367048071,1750636246308,-353.80887487,0.00024584,2]
[367048073,1750636246317,-460.0,0.00024584,2]
[367048074,1750636246327,-460.0,0.00024584,2]